[Event "Live Chess"]
[Site "Chess.com"]
[Date "2023.05.20"]
[Round "-"]
[White "vinni3012"]
[Black "ms_lilley"]
[Result "1-0"]
[WhiteElo "1866"]
[BlackElo "581"]
[TimeControl "300"]
[EndTime "10:27:26 PDT"]
[Termination "vinni3012 won by checkmate"]

1. d4 {[%clk 0:04:59.1]} 1... d5 {[%clk 0:04:57]} 2. c4 {[%clk 0:04:57.5]} 2...
e6 {[%clk 0:04:54.5]} 3. Nc3 {[%clk 0:04:56.6]} 3... a6 {[%clk 0:04:52.4]} 4.
cxd5 {[%clk 0:04:47.8]} 4... exd5 {[%clk 0:04:50.3]} 5. Nf3 {[%clk 0:04:47.4]}
5... Nf6 {[%clk 0:04:48.5]} 6. h3 {[%clk 0:04:40.9]} 6... h6 {[%clk 0:04:46.9]}
7. Bf4 {[%clk 0:04:38.2]} 7... Ne4 {[%clk 0:04:44]} 8. Nd2 {[%clk 0:04:01.4]}
8... Nxc3 {[%clk 0:04:37.3]} 9. bxc3 {[%clk 0:04:00.3]} 9... Bd6 {[%clk
0:04:34.1]} 10. Bxd6 {[%clk 0:03:52.5]} 10... Qxd6 {[%clk 0:04:30.9]} 11. e4
{[%clk 0:03:52.4]} 11... O-O {[%clk 0:04:28.1]} 12. e5 {[%clk 0:03:50.9]} 12...
Qa3 {[%clk 0:04:22.6]} 13. Qc2 {[%clk 0:03:40.9]} 13... Be6 {[%clk 0:04:19.3]}
14. f4 {[%clk 0:03:15.6]} 14... c5 {[%clk 0:04:16.9]} 15. Nb3 {[%clk 0:02:58.7]}
15... cxd4 {[%clk 0:03:28.1]} 16. cxd4 {[%clk 0:02:55.3]} 16... Qb4+ {[%clk
0:03:23.8]} 17. Qd2 {[%clk 0:02:53.5]} 17... Nc6 {[%clk 0:03:17.7]} 18. Bd3
{[%clk 0:02:42]} 18... Qxd2+ {[%clk 0:03:09.7]} 19. Kxd2 {[%clk 0:02:41.9]}
19... Nb4 {[%clk 0:03:03.7]} 20. g4 {[%clk 0:02:31.6]} 20... Rac8 {[%clk
0:03:01.7]} 21. Nc5 {[%clk 0:02:23.6]} 21... Nxd3 {[%clk 0:02:56.6]} 22. Kxd3
{[%clk 0:02:17.7]} 22... g5 {[%clk 0:02:54.9]} 23. f5 {[%clk 0:02:15.9]} 23...
Bxf5+ {[%clk 0:02:50.8]} 24. gxf5 {[%clk 0:02:14.5]} 24... f6 {[%clk 0:02:48.6]}
25. e6 {[%clk 0:02:11.1]} 25... b5 {[%clk 0:02:41.8]} 26. Nd7 {[%clk 0:02:07.5]}
26... Rfe8 {[%clk 0:02:38.6]} 27. Nxf6+ {[%clk 0:02:06.1]} 27... Kg7 {[%clk
0:02:32.2]} 28. Nxe8+ {[%clk 0:02:04.8]} 28... Rxe8 {[%clk 0:02:30.9]} 29. Rac1
{[%clk 0:02:02]} 29... Kf6 {[%clk 0:02:29.1]} 30. Rhf1 {[%clk 0:02:00.8]} 30...
h5 {[%clk 0:02:26.5]} 31. Rc7 {[%clk 0:01:59.2]} 31... g4 {[%clk 0:02:22.8]} 32.
hxg4 {[%clk 0:01:54]} 32... hxg4 {[%clk 0:02:21.1]} 33. Rf7+ {[%clk 0:01:52.9]}
33... Kg5 {[%clk 0:02:17.7]} 34. e7 {[%clk 0:01:46.7]} 34... g3 {[%clk
0:02:09.8]} 35. f6 {[%clk 0:01:45.5]} 35... Kg4 {[%clk 0:02:07.9]} 36. Rf8
{[%clk 0:01:44.2]} 36... g2 {[%clk 0:02:03.4]} 37. Rg1 {[%clk 0:01:42.9]} 37...
Kf3 {[%clk 0:01:58.3]} 38. Rxg2 {[%clk 0:01:39.6]} 38... Kxg2 {[%clk 0:01:56.1]}
39. Rxe8 {[%clk 0:01:38.9]} 39... b4 {[%clk 0:01:53.6]} 40. Rb8 {[%clk 0:01:37]}
40... a5 {[%clk 0:01:52.1]} 41. e8=Q {[%clk 0:01:35.3]} 41... a4 {[%clk
0:01:46.9]} 42. Qe2+ {[%clk 0:01:34.3]} 42... Kg3 {[%clk 0:01:43.3]} 43. Rg8+
{[%clk 0:01:33.7]} 43... Kf4 {[%clk 0:01:41.3]} 44. Qe3+ {[%clk 0:01:32.5]}
44... Kf5 {[%clk 0:01:39.7]} 45. Rg5+ {[%clk 0:01:31.2]} 45... Kxf6 {[%clk
0:01:37.8]} 46. Qe5+ {[%clk 0:01:31.1]} 46... Kf7 {[%clk 0:01:35.8]} 47. Rg7+
{[%clk 0:01:31]} 47... Kf8 {[%clk 0:01:33.3]} 48. Qe7# {[%clk 0:01:30.6]} 1-0

[Event "Live Chess"]
[Site "Chess.com"]
[Date "2023.05.20"]
[Round "-"]
[White "KGreenGator"]
[Black "GEMdzq"]
[Result "0-1"]
[WhiteElo "1761"]
[BlackElo "2281"]
[TimeControl "300"]
[EndTime "10:27:30 PDT"]
[Termination "GEMdzq won by checkmate"]

1. c4 {[%clk 0:04:58.9]} 1... b6 {[%clk 0:04:58.2]} 2. d4 {[%clk 0:04:57.3]}
2... e6 {[%clk 0:04:56.6]} 3. Nc3 {[%clk 0:04:56.5]} 3... Bb7 {[%clk 0:04:55]}
4. e4 {[%clk 0:04:55.6]} 4... Bb4 {[%clk 0:04:52.5]} 5. Qd3 {[%clk 0:04:53.5]}
5... Ne7 {[%clk 0:04:50.6]} 6. Ne2 {[%clk 0:04:48]} 6... O-O {[%clk 0:04:49.1]}
7. g3 {[%clk 0:04:46.8]} 7... f5 {[%clk 0:04:48]} 8. Bg2 {[%clk 0:04:45.4]} 8...
Nbc6 {[%clk 0:04:19.2]} 9. a3 {[%clk 0:04:42.2]} 9... Bxc3+ {[%clk 0:04:16.8]}
10. Nxc3 {[%clk 0:04:40.7]} 10... Na5 {[%clk 0:04:07.3]} 11. b4 {[%clk
0:04:36.8]} 11... Nb3 {[%clk 0:04:04.1]} 12. Rb1 {[%clk 0:04:36]} 12... Nxc1
{[%clk 0:04:03.4]} 13. Rxc1 {[%clk 0:04:34.5]} 13... fxe4 {[%clk 0:03:54.5]} 14.
Bxe4 {[%clk 0:04:33.5]} 14... Bxe4 {[%clk 0:03:53.7]} 15. Qxe4 {[%clk
0:04:32.4]} 15... Nf5 {[%clk 0:03:51.5]} 16. O-O {[%clk 0:04:29.9]} 16... Nd6
{[%clk 0:03:49.4]} 17. Qd3 {[%clk 0:04:28.3]} 17... Qg5 {[%clk 0:03:41.8]} 18.
Ne4 {[%clk 0:04:25.2]} 18... Nxe4 {[%clk 0:03:37.9]} 19. Qxe4 {[%clk 0:04:23.8]}
19... Rae8 {[%clk 0:03:35.5]} 20. d5 {[%clk 0:04:19.7]} 20... Re7 {[%clk
0:03:09.5]} 21. dxe6 {[%clk 0:04:15.2]} 21... Rxe6 {[%clk 0:03:08.2]} 22. Qd4
{[%clk 0:04:13.6]} 22... Rd6 {[%clk 0:03:04.8]} 23. Qe4 {[%clk 0:04:10.1]} 23...
Rd2 {[%clk 0:02:59.9]} 24. Rcd1 {[%clk 0:03:58.2]} 24... h6 {[%clk 0:02:23.8]}
25. Rxd2 {[%clk 0:03:54]} 25... Qxd2 {[%clk 0:02:22.7]} 26. Qd5+ {[%clk
0:03:52.2]} 26... Qxd5 {[%clk 0:02:21.6]} 27. cxd5 {[%clk 0:03:51.3]} 27... Kf7
{[%clk 0:02:11.3]} 28. Rc1 {[%clk 0:03:45.7]} 28... Rc8 {[%clk 0:02:09.7]} 29.
Kg2 {[%clk 0:03:39.6]} 29... Ke7 {[%clk 0:02:08.9]} 30. Kf3 {[%clk 0:03:37]}
30... Kd6 {[%clk 0:02:08.4]} 31. Ke4 {[%clk 0:03:36.1]} 31... Re8+ {[%clk
0:02:03.7]} 32. Kd3 {[%clk 0:03:31.6]} 32... Re5 {[%clk 0:02:00.5]} 33. Rc4
{[%clk 0:03:21.7]} 33... Rxd5+ {[%clk 0:01:55.8]} 34. Kc3 {[%clk 0:03:14.5]}
34... Rf5 {[%clk 0:01:42.7]} 35. f4 {[%clk 0:03:11]} 35... g5 {[%clk 0:01:41.9]}
36. fxg5 {[%clk 0:03:04.9]} 36... hxg5 {[%clk 0:01:41.8]} 37. Rd4+ {[%clk
0:03:01.8]} 37... Ke7 {[%clk 0:01:36.3]} 38. Rc4 {[%clk 0:02:59.7]} 38... c6
{[%clk 0:01:34.7]} 39. Re4+ {[%clk 0:02:57.9]} 39... Kd6 {[%clk 0:01:33]} 40.
Rd4+ {[%clk 0:02:56.3]} 40... Kc7 {[%clk 0:01:32.2]} 41. Rd2 {[%clk 0:02:45.6]}
41... d5 {[%clk 0:01:30.1]} 42. Kb2 {[%clk 0:02:44]} 42... Rf3 {[%clk
0:01:24.8]} 43. Re2 {[%clk 0:02:41.7]} 43... Kd6 {[%clk 0:01:24.1]} 44. a4
{[%clk 0:02:37.1]} 44... c5 {[%clk 0:01:22.2]} 45. b5 {[%clk 0:02:35.3]} 45...
c4 {[%clk 0:01:19]} 46. Rg2 {[%clk 0:02:28.4]} 46... d4 {[%clk 0:01:17.8]} 47.
g4 {[%clk 0:02:24.9]} 47... Kc5 {[%clk 0:01:11.4]} 48. Re2 {[%clk 0:02:18.5]}
48... c3+ {[%clk 0:01:06.8]} 49. Kb3 {[%clk 0:02:15.1]} 49... d3 {[%clk
0:01:03.6]} 50. Re5+ {[%clk 0:02:11.8]} 50... Kd4 {[%clk 0:01:02.8]} 51. Re8
{[%clk 0:02:08]} 51... c2 {[%clk 0:00:59]} 52. Kb2 {[%clk 0:02:04.8]} 52... Rf1
{[%clk 0:00:57.8]} 53. Rd8+ {[%clk 0:02:02.6]} 53... Ke3 {[%clk 0:00:57]} 54.
Re8+ {[%clk 0:02:01.7]} 54... Kd2 {[%clk 0:00:55.6]} 55. Rc8 {[%clk 0:02:00]}
55... Rb1+ {[%clk 0:00:54.4]} 56. Ka2 {[%clk 0:01:57.7]} 56... c1=Q {[%clk
0:00:53.3]} 57. Rxc1 {[%clk 0:01:56.5]} 57... Rxc1 {[%clk 0:00:52.5]} 58. a5
{[%clk 0:01:56.3]} 58... bxa5 {[%clk 0:00:48.2]} 59. h3 {[%clk 0:01:55.6]} 59...
Rc4 {[%clk 0:00:39.2]} 60. Kb3 {[%clk 0:01:54.4]} 60... Rb4+ {[%clk 0:00:37.9]}
61. Ka3 {[%clk 0:01:53.2]} 61... Kc3 {[%clk 0:00:33.6]} 62. b6 {[%clk
0:01:51.1]} 62... axb6 {[%clk 0:00:31.2]} 63. h4 {[%clk 0:01:50.8]} 63... Rb1
{[%clk 0:00:29.2]} 64. Ka2 {[%clk 0:01:48.6]} 64... Rb5 {[%clk 0:00:27.8]} 65.
Ka3 {[%clk 0:01:45.7]} 65... d2 {[%clk 0:00:26.6]} 66. h5 {[%clk 0:01:44.5]}
66... d1=Q {[%clk 0:00:26.1]} 67. Ka2 {[%clk 0:01:42.7]} 67... Qb1+ {[%clk
0:00:25.3]} 68. Ka3 {[%clk 0:01:41]} 68... Qa1# {[%clk 0:00:25.2]} 0-1

[Event "Live Chess"]
[Site "Chess.com"]
[Date "2023.05.20"]
[Round "-"]
[White "TheSmoulderingMaster"]
[Black "VovaOvchar1990"]
[Result "1-0"]
[WhiteElo "1790"]
[BlackElo "1188"]
[TimeControl "300"]
[EndTime "10:27:33 PDT"]
[Termination "TheSmoulderingMaster won by checkmate"]

1. e4 {[%clk 0:04:58.9]} 1... e5 {[%clk 0:04:58.7]} 2. Nf3 {[%clk 0:04:57.8]}
2... Nc6 {[%clk 0:04:58.2]} 3. Bb5 {[%clk 0:04:56.5]} 3... Bc5 {[%clk
0:04:57.6]} 4. O-O {[%clk 0:04:54.9]} 4... d6 {[%clk 0:04:54.7]} 5. c3 {[%clk
0:04:53.4]} 5... a6 {[%clk 0:04:53.4]} 6. Ba4 {[%clk 0:04:52.2]} 6... b5 {[%clk
0:04:51.7]} 7. Bc2 {[%clk 0:04:51.4]} 7... Nf6 {[%clk 0:04:49.1]} 8. d4 {[%clk
0:04:50.5]} 8... exd4 {[%clk 0:04:47.6]} 9. cxd4 {[%clk 0:04:49.9]} 9... Ba7
{[%clk 0:04:44.7]} 10. Bg5 {[%clk 0:04:48.4]} 10... h6 {[%clk 0:04:42.8]} 11.
Bh4 {[%clk 0:04:46.2]} 11... O-O {[%clk 0:04:39.3]} 12. Nc3 {[%clk 0:04:44.1]}
12... Qe7 {[%clk 0:04:19.1]} 13. Nd5 {[%clk 0:04:42.8]} 13... Qe6 {[%clk
0:04:11.9]} 14. Bxf6 {[%clk 0:04:36.7]} 14... gxf6 {[%clk 0:04:05.3]} 15. Nxc7
{[%clk 0:04:35.4]} 15... Qc4 {[%clk 0:03:55.6]} 16. Nxa8 {[%clk 0:04:33.6]}
16... Bg4 {[%clk 0:03:52.4]} 17. Nc7 {[%clk 0:04:28.1]} 17... Bxf3 {[%clk
0:03:48.5]} 18. gxf3 {[%clk 0:04:23.3]} 18... Nxd4 {[%clk 0:03:45.4]} 19. Nd5
{[%clk 0:04:22.2]} 19... Qxc2 {[%clk 0:02:29.5]} 20. Qxc2 {[%clk 0:04:20.3]}
20... Nxc2 {[%clk 0:02:27.5]} 21. Rac1 {[%clk 0:04:19.3]} 21... Nd4 {[%clk
0:02:19.5]} 22. Nxf6+ {[%clk 0:04:18]} 22... Kg7 {[%clk 0:02:02.1]} 23. Ng4
{[%clk 0:04:13.4]} 23... Ne2+ {[%clk 0:01:59.4]} 24. Kg2 {[%clk 0:04:12.2]}
24... Nxc1 {[%clk 0:01:58.2]} 25. Rxc1 {[%clk 0:04:10.9]} 25... Rg8 {[%clk
0:01:50.7]} 26. Rc7 {[%clk 0:04:06.5]} 26... Bc5 {[%clk 0:01:44.2]} 27. e5
{[%clk 0:04:04]} 27... Kg6 {[%clk 0:01:28.1]} 28. exd6 {[%clk 0:04:00.3]} 28...
Bxd6 {[%clk 0:01:26]} 29. Rc6 {[%clk 0:03:59.4]} 29... Rd8 {[%clk 0:01:23]} 30.
Ne5+ {[%clk 0:03:51.7]} 30... Kf5 {[%clk 0:01:16.8]} 31. Nxf7 {[%clk 0:03:48.5]}
31... Rg8+ {[%clk 0:01:07.4]} 32. Kh3 {[%clk 0:03:42.2]} 32... Bb4 {[%clk
0:00:57.3]} 33. Nxh6+ {[%clk 0:03:37.3]} 33... Kf4 {[%clk 0:00:55.6]} 34. Nxg8
{[%clk 0:03:36.6]} 34... Kxf3 {[%clk 0:00:55.5]} 35. Rf6+ {[%clk 0:03:35]} 35...
Ke2 {[%clk 0:00:52.6]} 36. f4 {[%clk 0:03:34.4]} 36... a5 {[%clk 0:00:51.9]} 37.
f5 {[%clk 0:03:33.5]} 37... a4 {[%clk 0:00:51.8]} 38. Rf7 {[%clk 0:03:32.4]}
38... a3 {[%clk 0:00:51.7]} 39. bxa3 {[%clk 0:03:31.1]} 39... Bxa3 {[%clk
0:00:50.6]} 40. f6 {[%clk 0:03:30.6]} 40... b4 {[%clk 0:00:49.2]} 41. Re7+
{[%clk 0:03:29.5]} 41... Kd3 {[%clk 0:00:47.1]} 42. f7 {[%clk 0:03:27.9]} 42...
Kc2 {[%clk 0:00:47]} 43. f8=Q {[%clk 0:03:26.1]} 43... Kb2 {[%clk 0:00:46.9]}
44. Qf2+ {[%clk 0:03:24.2]} 44... Kc3 {[%clk 0:00:43]} 45. Re3+ {[%clk
0:03:22.5]} 45... Kc4 {[%clk 0:00:42.9]} 46. Qf4+ {[%clk 0:03:21.9]} 46... Kb5
{[%clk 0:00:42.6]} 47. Re5+ {[%clk 0:03:21.4]} 47... Ka4 {[%clk 0:00:41.9]} 48.
Qc4 {[%clk 0:03:15.3]} 48... Bb2 {[%clk 0:00:31.8]} 49. Rb5 {[%clk 0:03:10]}
49... Bc3 {[%clk 0:00:28.6]} 50. a3 {[%clk 0:03:06.6]} 50... Kxa3 {[%clk
0:00:25]} 51. Ra5+ {[%clk 0:03:03.8]} 51... Kb2 {[%clk 0:00:22.9]} 52. Ra2+
{[%clk 0:03:00.7]} 52... Kb1 {[%clk 0:00:18.6]} 53. Rg2 {[%clk 0:02:57]} 53...
b3 {[%clk 0:00:11.5]} 54. Qf1+ {[%clk 0:02:55.6]} 54... Be1 {[%clk 0:00:05.4]}
55. Qxe1# {[%clk 0:02:54.9]} 1-0

[Event "Live Chess"]
[Site "Chess.com"]
[Date "2023.05.20"]
[Round "-"]
[White "ranvir123"]
[Black "terrub10"]
[Result "1-0"]
[WhiteElo "908"]
[BlackElo "811"]
[TimeControl "300"]
[EndTime "10:27:40 PDT"]
[Termination "ranvir123 won by checkmate"]

1. e4 {[%clk 0:04:57.7]} 1... e5 {[%clk 0:04:58]} 2. Nf3 {[%clk 0:04:57]} 2...
Nc6 {[%clk 0:04:54.3]} 3. Bc4 {[%clk 0:04:56.4]} 3... Nf6 {[%clk 0:04:45.3]} 4.
Ng5 {[%clk 0:04:54.6]} 4... Rg8 {[%clk 0:04:31.8]} 5. Bxf7+ {[%clk 0:04:45.5]}
5... Ke7 {[%clk 0:04:22.9]} 6. Bxg8 {[%clk 0:04:43.5]} 6... d5 {[%clk
0:04:18.2]} 7. exd5 {[%clk 0:04:38.7]} 7... Bg4 {[%clk 0:04:10.5]} 8. f3 {[%clk
0:04:33.3]} 8... Bh5 {[%clk 0:04:05.2]} 9. dxc6 {[%clk 0:04:29.1]} 9... bxc6
{[%clk 0:03:57.4]} 10. Nc3 {[%clk 0:04:27.2]} 10... e4 {[%clk 0:03:34.9]} 11.
Ngxe4 {[%clk 0:04:17.2]} 11... Nxg8 {[%clk 0:03:29.7]} 12. g4 {[%clk 0:04:11.8]}
12... Bg6 {[%clk 0:03:21.7]} 13. Ng5 {[%clk 0:04:03.6]} 13... Kf6 {[%clk
0:03:15.4]} 14. Nce4+ {[%clk 0:04:00.6]} 14... Bxe4 {[%clk 0:03:09.3]} 15. Nxe4+
{[%clk 0:03:58]} 15... Ke5 {[%clk 0:03:06.8]} 16. Qe2 {[%clk 0:03:47.6]} 16...
Bb4 {[%clk 0:02:59.2]} 17. Ng5+ {[%clk 0:03:42.3]} 17... Kf4 {[%clk 0:02:54.1]}
18. Ne6# {[%clk 0:03:39.7]} 1-0

[Event "Live Chess"]
[Site "Chess.com"]
[Date "2023.05.20"]
[Round "-"]
[White "PackedNote"]
[Black "mattihelenius2"]
[Result "1-0"]
[WhiteElo "786"]
[BlackElo "443"]
[TimeControl "300"]
[EndTime "10:27:41 PDT"]
[Termination "PackedNote won by checkmate"]

1. e4 {[%clk 0:04:59.3]} 1... e5 {[%clk 0:04:59.1]} 2. Nf3 {[%clk 0:04:58.6]}
2... f6 {[%clk 0:04:58.2]} 3. Bb5 {[%clk 0:04:57.7]} 3... Nc6 {[%clk 0:04:53]}
4. O-O {[%clk 0:04:52.3]} 4... a6 {[%clk 0:04:51]} 5. Ba4 {[%clk 0:04:51.1]}
5... Bb4 {[%clk 0:04:44.7]} 6. c3 {[%clk 0:04:43.4]} 6... Bd6 {[%clk 0:04:31.6]}
7. Re1 {[%clk 0:04:41.6]} 7... b5 {[%clk 0:04:29.5]} 8. Bb3 {[%clk 0:04:40.5]}
8... Nge7 {[%clk 0:04:24.6]} 9. d4 {[%clk 0:04:37.1]} 9... Ng6 {[%clk
0:04:02.2]} 10. Be3 {[%clk 0:04:32.3]} 10... b4 {[%clk 0:03:44.5]} 11. Nbd2
{[%clk 0:04:19.9]} 11... Nf4 {[%clk 0:03:30.9]} 12. a3 {[%clk 0:03:52]} 12... a5
{[%clk 0:03:24]} 13. axb4 {[%clk 0:03:49.4]} 13... axb4 {[%clk 0:03:22.6]} 14.
Rxa8 {[%clk 0:03:48.3]} 14... Nd3 {[%clk 0:03:12.9]} 15. Re2 {[%clk 0:03:32.4]}
15... Nxb2 {[%clk 0:03:11.6]} 16. Qc2 {[%clk 0:03:30.1]} 16... bxc3 {[%clk
0:02:48.1]} 17. Qxc3 {[%clk 0:03:18.8]} 17... Nb4 {[%clk 0:02:27.6]} 18. Qxb2
{[%clk 0:03:13.1]} 18... Nd3 {[%clk 0:02:25.7]} 19. Qc3 {[%clk 0:03:09.6]} 19...
Nb4 {[%clk 0:02:24.6]} 20. dxe5 {[%clk 0:02:57.1]} 20... Bxe5 {[%clk 0:02:22.6]}
21. Qxb4 {[%clk 0:02:53.8]} 21... f5 {[%clk 0:02:15.4]} 22. exf5 {[%clk
0:02:49.4]} 22... g6 {[%clk 0:01:57.7]} 23. fxg6 {[%clk 0:02:47.8]} 23... hxg6
{[%clk 0:01:55.9]} 24. Qe4 {[%clk 0:02:40]} 24... d6 {[%clk 0:01:53.1]} 25.
Qxg6+ {[%clk 0:02:38]} 25... Kd7 {[%clk 0:01:49.4]} 26. Nxe5+ {[%clk 0:02:34.7]}
26... dxe5 {[%clk 0:01:47.7]} 27. Ba4+ {[%clk 0:02:26.6]} 27... c6 {[%clk
0:01:45.8]} 28. Bxc6+ {[%clk 0:02:21.3]} 28... Kc7 {[%clk 0:01:40.8]} 29. Ra7+
{[%clk 0:02:19]} 29... Kb8 {[%clk 0:01:35]} 30. Rg7 {[%clk 0:01:57.8]} 30... Re8
{[%clk 0:01:16.3]} 31. Ba7# {[%clk 0:01:50.5]} 1-0

[Event "Live Chess"]
[Site "Chess.com"]
[Date "2023.05.20"]
[Round "-"]
[White "ClassyChameleon"]
[Black "Tema1107"]
[Result "0-1"]
[WhiteElo "1044"]
[BlackElo "1965"]
[TimeControl "300"]
[EndTime "10:27:41 PDT"]
[Termination "Tema1107 won by resignation"]

1. e4 {[%clk 0:04:58.2]} 1... c5 {[%clk 0:04:58.8]} 2. Nc3 {[%clk 0:04:56]} 2...
Nc6 {[%clk 0:04:57.7]} 3. Bc4 {[%clk 0:04:54.3]} 3... e6 {[%clk 0:04:56.6]} 4.
d3 {[%clk 0:04:52.8]} 4... Nge7 {[%clk 0:04:55.7]} 5. Nf3 {[%clk 0:04:52]} 5...
d5 {[%clk 0:04:54.3]} 6. Bb3 {[%clk 0:04:49.1]} 6... a6 {[%clk 0:04:51]} 7. O-O
{[%clk 0:04:47.3]} 7... b5 {[%clk 0:04:49.5]} 8. a3 {[%clk 0:04:45.3]} 8... Bb7
{[%clk 0:04:45]} 9. exd5 {[%clk 0:04:34.5]} 9... exd5 {[%clk 0:04:44.9]} 10. Ne2
{[%clk 0:04:30.4]} 10... g6 {[%clk 0:04:41.5]} 11. d4 {[%clk 0:04:29.4]} 11...
c4 {[%clk 0:04:40.3]} 12. Ba2 {[%clk 0:04:28.4]} 12... Bg7 {[%clk 0:04:39.4]}
13. c3 {[%clk 0:04:26.9]} 13... O-O {[%clk 0:04:37.1]} 14. b4 {[%clk 0:04:23.5]}
14... Bc8 {[%clk 0:04:34.6]} 15. Bb1 {[%clk 0:04:21.7]} 15... Bf5 {[%clk
0:04:32.6]} 16. Nh4 {[%clk 0:04:04.2]} 16... Bxb1 {[%clk 0:04:31.2]} 17. Rxb1
{[%clk 0:04:03.2]} 17... Bf6 {[%clk 0:04:25.4]} 18. g3 {[%clk 0:03:44.1]} 18...
Bxh4 {[%clk 0:04:23.1]} 19. gxh4 {[%clk 0:03:43.5]} 19... Nf5 {[%clk 0:04:22.5]}
20. Bg5 {[%clk 0:03:39.5]} 20... f6 {[%clk 0:04:20.7]} 21. Bf4 {[%clk
0:03:29.4]} 21... Nxh4 {[%clk 0:04:18.2]} 22. Ng3 {[%clk 0:03:22.6]} 22... g5
{[%clk 0:04:09.6]} 23. Be3 {[%clk 0:03:14.9]} 23... f5 {[%clk 0:04:07.2]} 24.
Qh5 {[%clk 0:03:02.4]} 24... f4 {[%clk 0:03:49.5]} 25. Bd2 {[%clk 0:02:33.2]}
25... fxg3 {[%clk 0:03:46.7]} 26. hxg3 {[%clk 0:02:32.9]} 26... Nf3+ {[%clk
0:03:44.9]} 27. Kg2 {[%clk 0:02:26.3]} 27... Nxd2 {[%clk 0:03:42.9]} 28. Qxg5+
{[%clk 0:02:25.6]} 28... Qxg5 {[%clk 0:03:41.5]} 0-1

[Event "Live Chess"]
[Site "Chess.com"]
[Date "2023.05.20"]
[Round "-"]
[White "alanmike75"]
[Black "lucaskk818"]
[Result "0-1"]
[WhiteElo "1480"]
[BlackElo "1871"]
[TimeControl "300"]
[EndTime "10:27:55 PDT"]
[Termination "lucaskk818 won on time"]

1. e4 {[%clk 0:04:59.3]} 1... e6 {[%clk 0:04:59.2]} 2. Nf3 {[%clk 0:04:57]} 2...
d5 {[%clk 0:04:58.9]} 3. exd5 {[%clk 0:04:55.9]} 3... exd5 {[%clk 0:04:58.8]} 4.
d4 {[%clk 0:04:54.5]} 4... Nf6 {[%clk 0:04:58.4]} 5. Bd3 {[%clk 0:04:53.4]} 5...
Bd6 {[%clk 0:04:58]} 6. Nbd2 {[%clk 0:04:50.7]} 6... O-O {[%clk 0:04:54.9]} 7.
c4 {[%clk 0:04:48.4]} 7... dxc4 {[%clk 0:04:53]} 8. Nxc4 {[%clk 0:04:46.9]} 8...
Nbd7 {[%clk 0:04:52.9]} 9. Nxd6 {[%clk 0:04:44.4]} 9... cxd6 {[%clk 0:04:50.8]}
10. O-O {[%clk 0:04:40.7]} 10... h6 {[%clk 0:04:50.4]} 11. Bf4 {[%clk
0:04:38.6]} 11... Qb6 {[%clk 0:04:48.7]} 12. Qb3 {[%clk 0:04:28]} 12... Qxb3
{[%clk 0:04:42.1]} 13. axb3 {[%clk 0:04:26.8]} 13... d5 {[%clk 0:04:42]} 14. Ne5
{[%clk 0:04:14.9]} 14... Nb6 {[%clk 0:04:37.6]} 15. Rfc1 {[%clk 0:04:10]} 15...
Be6 {[%clk 0:04:20.2]} 16. h3 {[%clk 0:04:08.3]} 16... Rac8 {[%clk 0:04:16.9]}
17. Kf1 {[%clk 0:03:59.8]} 17... Ne4 {[%clk 0:04:04.8]} 18. f3 {[%clk
0:03:47.2]} 18... Nf6 {[%clk 0:03:54.9]} 19. Rc3 {[%clk 0:03:45.1]} 19... Nh5
{[%clk 0:03:49.6]} 20. Bh2 {[%clk 0:03:41.4]} 20... Nf6 {[%clk 0:03:17.9]} 21.
Rac1 {[%clk 0:03:38.7]} 21... Rfd8 {[%clk 0:03:08.4]} 22. g4 {[%clk 0:03:30.5]}
22... Kf8 {[%clk 0:02:59.7]} 23. Kf2 {[%clk 0:03:15.9]} 23... Ke7 {[%clk
0:02:57.3]} 24. Ke3 {[%clk 0:03:14.7]} 24... a6 {[%clk 0:02:41.5]} 25. f4 {[%clk
0:03:03.6]} 25... Nfd7 {[%clk 0:02:27.2]} 26. f5 {[%clk 0:02:46.2]} 26... Nxe5
{[%clk 0:02:24.3]} 27. Rxc8 {[%clk 0:02:40.6]} 27... Rxc8 {[%clk 0:02:05.9]} 28.
Rxc8 {[%clk 0:02:37.7]} 28... Bxc8 {[%clk 0:01:57.9]} 29. dxe5 {[%clk
0:02:29.4]} 29... f6 {[%clk 0:01:56.4]} 30. e6 {[%clk 0:02:27.5]} 30... Na8
{[%clk 0:01:53.8]} 31. Kd4 {[%clk 0:02:03.6]} 31... b5 {[%clk 0:01:44.7]} 32.
Kxd5 {[%clk 0:02:01.1]} 32... Bb7+ {[%clk 0:01:43]} 33. Kc5 {[%clk 0:01:49.2]}
33... Bg2 {[%clk 0:01:41.7]} 34. Bd6+ {[%clk 0:01:38.5]} 34... Ke8 {[%clk
0:01:40.2]} 35. Be2 {[%clk 0:01:09.1]} 35... Bh1 {[%clk 0:01:36.7]} 36. b4
{[%clk 0:00:56.9]} 36... Bg2 {[%clk 0:01:35.7]} 37. Bf4 {[%clk 0:00:45.2]} 37...
Be4 {[%clk 0:01:33.7]} 38. Kd4 {[%clk 0:00:42.5]} 38... Bh1 {[%clk 0:01:32.1]}
39. h4 {[%clk 0:00:31.9]} 39... Nb6 {[%clk 0:01:30.4]} 40. g5 {[%clk 0:00:28.7]}
40... hxg5 {[%clk 0:01:27.5]} 41. hxg5 {[%clk 0:00:27.6]} 41... Na4 {[%clk
0:01:19.8]} 42. gxf6 {[%clk 0:00:22.8]} 42... gxf6 {[%clk 0:01:19.7]} 43. b3
{[%clk 0:00:19.2]} 43... Nb6 {[%clk 0:01:17.7]} 44. Bh5+ {[%clk 0:00:14.6]}
44... Ke7 {[%clk 0:01:16.8]} 45. Be3 {[%clk 0:00:07.2]} 45... Nc8 {[%clk
0:01:15.3]} 46. Kc5 {[%clk 0:00:05]} 46... Be4 {[%clk 0:01:10.6]} 0-1

[Event "Live Chess"]
[Site "Chess.com"]
[Date "2023.05.20"]
[Round "-"]
[White "nigelst"]
[Black "lHolyDiverl"]
[Result "1-0"]
[WhiteElo "1842"]
[BlackElo "562"]
[TimeControl "300"]
[EndTime "10:27:59 PDT"]
[Termination "nigelst won on time"]

1. e4 {[%clk 0:04:58.6]} 1... c6 {[%clk 0:04:59]} 2. d4 {[%clk 0:04:56.8]} 2...
d5 {[%clk 0:04:58.3]} 3. exd5 {[%clk 0:04:55.2]} 3... cxd5 {[%clk 0:04:52.2]} 4.
Bd3 {[%clk 0:04:47.3]} 4... Nf6 {[%clk 0:04:47.1]} 5. Nf3 {[%clk 0:04:44.3]}
5... Nc6 {[%clk 0:04:32.3]} 6. O-O {[%clk 0:04:33]} 6... Bg4 {[%clk 0:04:08.3]}
7. c3 {[%clk 0:04:24.6]} 7... g6 {[%clk 0:03:24.7]} 8. Re1 {[%clk 0:04:21.6]}
8... Bg7 {[%clk 0:03:16]} 9. Bg5 {[%clk 0:04:13.5]} 9... Qb6 {[%clk 0:02:45]}
10. Qb3 {[%clk 0:04:10.7]} 10... O-O {[%clk 0:02:35.7]} 11. Qxb6 {[%clk
0:04:06.8]} 11... axb6 {[%clk 0:02:34.3]} 12. Nbd2 {[%clk 0:03:43.3]} 12... Rfe8
{[%clk 0:01:58.7]} 13. Ne5 {[%clk 0:03:24.7]} 13... Nxe5 {[%clk 0:01:33.5]} 14.
Rxe5 {[%clk 0:03:11.3]} 14... Ne4 {[%clk 0:00:59]} 15. Rxe4 {[%clk 0:02:19]}
15... dxe4 {[%clk 0:00:55.9]} 16. Bxe4 {[%clk 0:02:18.1]} 16... e5 {[%clk
0:00:47.5]} 17. Bxb7 {[%clk 0:02:13.5]} 17... Rad8 {[%clk 0:00:41.7]} 18. d5
{[%clk 0:02:07.1]} 18... Rd6 {[%clk 0:00:29]} 19. Bc6 {[%clk 0:02:00.8]} 19...
Bf5 {[%clk 0:00:19.9]} 20. Nc4 {[%clk 0:01:57]} 20... Rxc6 {[%clk 0:00:12.5]}
21. dxc6 {[%clk 0:01:55.2]} 21... Rc8 {[%clk 0:00:11]} 22. Nd6 {[%clk
0:01:53.3]} 22... Rxc6 {[%clk 0:00:07.3]} 23. Nxf5 {[%clk 0:01:52.3]} 23... gxf5
{[%clk 0:00:06.5]} 24. Rd1 {[%clk 0:01:49.5]} 24... Rg6 {[%clk 0:00:04.6]} 25.
Rd8+ {[%clk 0:01:44.7]} 25... Bf8 {[%clk 0:00:03.4]} 26. Be7 {[%clk 0:01:43.4]}
26... Kg7 {[%clk 0:00:00.9]} 27. Bxf8+ {[%clk 0:01:42]} 1-0